bitfinex/quotes_BTCUSD_20250226
["timestamp","ask_amount","ask_price","bid_price","bid_amount"]
[1740589734002,0.171697,87363.0,87362.0,0.00429837]
[1740589734206,0.02,87391.0,87362.0,0.00429837]
[1740589734207,0.1535235,87406.0,87363.0,0.3]
[1740589734434,0.228853,87393.0,87363.0,0.3]
[1740589734757,0.171695,87364.0,87363.0,0.3]
[1740589735112,0.171695,87364.0,87363.0,1.8]
[1740589735315,0.171695,87364.0,87363.0,1.799]
[1740589736236,0.18024266,87364.0,87363.0,1.799]
[1740589736432,0.18024266,87364.0,87363.0,1.79904]
[1740589736851,0.18124266,87364.0,87363.0,1.80404]
[1740589737251,0.18124266,87364.0,87363.0,1.80704]
[1740589737459,0.172695,87364.0,87363.0,1.80704]
[1740589739545,0.172695,87364.0,87363.0,0.00804]
[1740589740283,0.172695,87364.0,87363.0,1.80804]
[1740589742056,0.172695,87364.0,87363.0,0.00804]
[1740589742263,0.47969329,87364.0,87363.0,0.00804]
[1740589742907,0.171715,87354.0,87353.0,4e-05]
[1740589743524,0.17174,87341.0,87325.0,0.078847]
[1740589743827,0.17174,87341.0,87340.0,0.00016344]
[1740589744883,0.50130392,87341.0,87340.0,0.00016344]
[1740589745062,0.47873829,87341.0,87340.0,0.00016344]
[1740589745875,0.50131344,87341.0,87340.0,0.00016344]
[1740589746097,0.32957344,87341.0,87340.0,0.00016344]
[1740589746388,0.32957344,87341.0,87340.0,0.00020344]
[1740589746589,0.50131344,87341.0,87340.0,0.00020344]
[1740589746941,0.50131344,87341.0,87340.0,1.50020344]
[1740589747378,0.19431515,87341.0,87340.0,1.50020344]
[1740589747817,0.19331515,87341.0,87340.0,1.50020344]
[1740589748289,0.19431515,87341.0,87340.0,1.50020344]
[1740589748709,0.19331515,87341.0,87340.0,1.50020344]
[1740589748868,0.19331515,87341.0,87340.0,0.00320344]
[1740589749411,0.19331515,87341.0,87340.0,0.00020344]
[1740589749672,0.17177,87326.0,87325.0,0.000847]
[1740589750241,0.228987,87342.0,87325.0,0.000847]
[1740589750411,0.04,87360.0,87325.0,0.000847]
[1740589750610,0.36341,87360.0,87325.0,0.000847]
[1740589750834,0.02157515,87341.0,87325.0,0.000847]
[1740589751036,0.17177,87326.0,87325.0,0.000847]
[1740589752300,0.17177,87326.0,87325.0,0.000887]
[1740589752839,0.22902,87329.0,87325.0,0.000887]
[1740589753260,0.17177,87326.0,87325.0,0.000887]
[1740589755002,0.18233745,87326.0,87325.0,0.000887]
[1740589755228,0.18433745,87326.0,87325.0,0.000887]
[1740589755808,0.20175765,87326.0,87325.0,0.000887]
[1740589756621,0.20175765,87326.0,87325.0,1.500887]
[1740589757135,0.22902,87329.0,87325.0,1.500887]
[1740589757337,0.17177,87326.0,87325.0,1.500887]
[1740589757558,0.06363478,87340.0,87325.0,0.081087]
[1740589757764,0.002,87326.0,87325.0,0.428787]
[1740589757966,0.002,87326.0,87325.0,1.928787]
[1740589758175,0.17377,87326.0,87325.0,1.848587]
[1740589758323,0.17377,87326.0,87325.0,1.800887]
[1740589758529,0.17177,87326.0,87325.0,1.800887]
[1740589759145,0.17177,87326.0,87325.0,1.500887]
[1740589759464,0.17277,87326.0,87325.0,1.500887]
[1740589759828,0.17277,87326.0,87325.0,0.000887]
[1740589760032,0.001,87326.0,87325.0,0.000887]
[1740589761427,0.06363478,87362.0,87325.0,0.000887]
[1740589761565,0.17277,87326.0,87325.0,0.000887]
[1740589761974,0.001,87326.0,87325.0,0.000887]
[1740589762175,0.171762,87330.0,87325.0,0.000887]
[1740589762443,0.06363478,87347.0,87325.0,0.000887]
[1740589762644,0.171767,87328.0,87325.0,0.000887]
[1740589762801,0.228974,87346.0,87325.0,0.000887]
[1740589762998,0.229021,87329.0,87325.0,0.000887]
[1740589763201,0.228999,87337.0,87325.0,0.000887]
[1740589763521,0.229017,87330.0,87325.0,0.000887]
[1740589763724,0.17177,87326.0,87325.0,0.000887]
[1740589763925,0.229023,87328.0,87325.0,0.000887]
[1740589764133,0.171764,87330.0,87327.0,1.5]
[1740589764337,0.171764,87329.0,87327.0,1.5]
[1740589764576,0.06775799,87347.0,87325.0,0.000887]
[1740589764910,0.17177,87326.0,87325.0,0.000887]
[1740589766882,0.17277,87326.0,87325.0,0.000887]
[1740589767089,0.001,87326.0,87325.0,0.000887]
[1740589767294,0.17277,87326.0,87325.0,0.000887]
[1740589768012,0.17177,87326.0,87325.0,0.000887]
[1740589768631,0.17277,87326.0,87325.0,0.000887]
[1740589768832,0.17177,87326.0,87325.0,0.000887]
[1740589771679,0.17177,87326.0,87325.0,0.001887]
[1740589772000,0.24115727,87326.0,87325.0,0.000887]
[1740589772208,0.17177,87326.0,87325.0,0.000887]
[1740589772428,0.17862475,87326.0,87325.0,0.001887]
[1740589772642,0.17177,87326.0,87325.0,0.001887]
[1740589772808,0.17177,87326.0,87325.0,0.000887]
[1740589773231,0.18037088,87326.0,87325.0,0.001887]
[1740589773522,0.20387302,87326.0,87325.0,0.001887]
[1740589774387,0.171805,87308.0,87301.0,0.0775]
[1740589775064,0.18040588,87308.0,87301.0,0.0775]
[1740589775388,0.23630813,87308.0,87301.0,0.0775]
[1740589775594,0.23730813,87308.0,87303.0,0.3]
[1740589775777,0.24905859,87308.0,87307.0,0.00096969]
[1740589776479,0.2764838,87308.0,87307.0,0.00096969]
[1740589776693,0.22058155,87308.0,87307.0,0.00096969]
[1740589777087,0.22058155,87308.0,87307.0,0.30096969]
[1740589777231,0.03802609,87308.0,87307.0,0.00096969]
[1740589777434,0.20983109,87308.0,87307.0,0.00096969]
[1740589777661,0.20983109,87308.0,87307.0,1.80096969]
[1740589777972,0.03802609,87308.0,87307.0,1.80096969]
[1740589779391,0.20983109,87308.0,87307.0,1.80096969]
[1740589780150,0.20983109,87308.0,87307.0,0.30096969]
[1740589780974,0.20883109,87308.0,87307.0,0.30096969]
[1740589781849,0.20783109,87308.0,87307.0,0.30096969]
[1740589784534,0.19923021,87308.0,87307.0,0.00096969]
[1740589785111,0.02742521,87308.0,87307.0,0.00096969]
[1740589785349,0.06363478,87311.0,87307.0,0.00096969]
[1740589785551,0.0816,87337.0,87307.0,0.00096969]
[1740589785800,0.001,87308.0,87307.0,0.00096969]
[1740589786003,0.173805,87308.0,87307.0,0.00096969]
[1740589786219,0.173805,87308.0,87307.0,1.50096969]
[1740589786336,0.172805,87308.0,87307.0,1.50096969]
[1740589787347,0.18040219,87308.0,87307.0,1.50096969]
[1740589787924,0.00859719,87308.0,87307.0,1.50096969]
[1740589788123,0.00859719,87308.0,87307.0,1.80096969]
[1740589788966,0.00859719,87308.0,87307.0,0.30096969]
[1740589789322,0.00859719,87308.0,87307.0,0.34636969]
[1740589789527,0.17177,87326.0,87308.0,0.3]
[1740589789750,0.02766542,87333.0,87309.0,0.0825]
[1740589789995,0.17178,87321.0,87309.0,0.0825]
[1740589790341,0.02830782,87333.0,87320.0,1.5]
[1740589790575,0.229011,87332.0,87321.0,0.3]
[1740589790751,0.171778,87322.0,87321.0,0.3]
[1740589791376,0.171787,87317.0,87309.0,0.0825]
[1740589791583,0.36461332,87339.0,87309.0,0.0825]
[1740589791731,0.41140272,87339.0,87309.0,0.0825]
[1740589791928,0.36461332,87339.0,87309.0,0.0825]
[1740589792129,0.171789,87317.0,87309.0,0.0825]
[1740589792348,0.0004238,87332.0,87309.0,0.0825]
[1740589792539,0.171791,87316.0,87309.0,0.0825]
[1740589792740,0.004,87326.0,87309.0,0.0825]
[1740589792968,0.171786,87318.0,87309.0,0.0825]
[1740589793127,0.229027,87326.0,87309.0,0.0825]
[1740589793333,0.171792,87315.0,87309.0,0.0825]
[1740589793999,0.171793,87315.0,87309.0,0.0825]
[1740589794149,0.171791,87316.0,87309.0,0.0825]
[1740589794557,0.171794,87314.0,87309.0,0.0825]
[1740589795370,0.171793,87315.0,87309.0,0.0825]
[1740589795570,0.171793,87315.0,87314.0,0.3]
[1740589797207,0.171793,87315.0,87314.0,0.299]
[1740589797415,0.171793,87315.0,87314.0,0.3]
[1740589798511,0.18039493,87315.0,87314.0,0.299]
[1740589798886,0.18039493,87315.0,87314.0,0.3]
[1740589799278,0.18039493,87315.0,87314.0,0.001]
[1740589799481,0.18039493,87315.0,87307.0,0.04636969]
[1740589799696,0.40945093,87315.0,87314.0,1.801]
[1740589799864,0.400849,87315.0,87314.0,1.801]
[1740589800277,0.400849,87315.0,87314.0,1.8]
[1740589800686,0.400849,87315.0,87314.0,1.801]
[1740589801763,0.400849,87315.0,87314.0,1.8]
[1740589802205,0.400849,87315.0,87314.0,1.801]
[1740589802871,0.40945469,87315.0,87314.0,1.501]
[1740589803656,0.40945469,87315.0,87314.0,1.5]
[1740589805181,0.00860569,87315.0,87314.0,1.9271]
[1740589805304,0.10285692,87331.0,87315.0,0.3]
[1740589805749,0.10285692,87331.0,87319.0,0.171783]
[1740589805949,0.10285692,87331.0,87330.0,1.5]
[1740589806370,0.27461692,87331.0,87330.0,1.5]
[1740589806776,0.10385692,87331.0,87330.0,1.5]
[1740589807183,0.10385692,87331.0,87330.0,1.883]
[1740589807400,0.10485692,87331.0,87330.0,2.103762]
[1740589808039,0.10385692,87331.0,87330.0,1.932]
[1740589808226,0.10285692,87331.0,87330.0,1.932]
[1740589808355,0.10385692,87331.0,87330.0,1.932]
[1740589808553,0.10485692,87331.0,87330.0,1.932]
[1740589808759,0.10385692,87331.0,87330.0,1.932]
[1740589808954,0.10385692,87331.0,87330.0,2.103762]
[1740589809169,0.002,87331.0,87330.0,2.106762]
[1740589809362,0.002,87331.0,87330.0,2.12130285]
[1740589809802,0.001,87331.0,87330.0,2.15660084]
[1740589810030,0.002,87331.0,87330.0,2.12130285]
[1740589810382,0.0004238,87332.0,87331.0,0.48630085]
[1740589810789,0.0004238,87332.0,87331.0,0.48530085]
[1740589811185,0.0004238,87332.0,87331.0,1.98530085]
[1740589811406,0.0004238,87332.0,87331.0,2.06320085]
[1740589811631,0.10285692,87348.0,87345.0,0.471732]
[1740589811909,0.10285692,87348.0,87345.0,0.94645285]
[1740589812271,0.10285692,87348.0,87345.0,2.11915285]
[1740589812576,0.10285692,87348.0,87345.0,2.11815285]
[1740589812783,0.10285692,87348.0,87345.0,2.11007285]
[1740589812980,0.00054701,87346.0,87345.0,2.11007285]
[1740589813208,0.00054701,87346.0,87345.0,2.12115285]
[1740589813358,0.00254701,87346.0,87345.0,2.12715285]
[1740589813569,0.00254701,87346.0,87345.0,2.12315285]
[1740589813947,0.00354701,87346.0,87345.0,2.12715285]
[1740589814149,0.00254701,87346.0,87345.0,2.65142085]
[1740589814555,0.00354701,87346.0,87345.0,2.82815285]
[1740589814773,0.00254701,87346.0,87345.0,2.82615285]
[1740589815118,0.00354701,87346.0,87345.0,2.6328]
[1740589815639,0.00354701,87346.0,87345.0,1.9328]
[1740589816043,0.00254701,87346.0,87345.0,1.9288]
[1740589816243,0.00054701,87346.0,87345.0,1.9238]
[1740589816448,0.00154701,87346.0,87345.0,1.9288]
[1740589816856,0.00254701,87346.0,87345.0,1.9338]
[1740589817287,0.00154701,87346.0,87345.0,1.9288]
[1740589817486,0.17327701,87346.0,87345.0,1.9288]
[1740589817706,0.17327701,87346.0,87345.0,1.8578]
[1740589817915,0.17327701,87346.0,87345.0,1.809]
[1740589818117,0.20729116,87346.0,87345.0,1.509]
[1740589818318,0.20629116,87346.0,87345.0,1.804]
[1740589818806,0.20629116,87346.0,87345.0,1.504]
[1740589819143,0.20729116,87346.0,87345.0,1.809]
[1740589819651,0.20729116,87346.0,87345.0,1.509]
[1740589819797,0.20729116,87346.0,87345.0,1.809]
[1740589820000,0.20719116,87346.0,87345.0,1.809]
[1740589820262,0.20719116,87346.0,87345.0,1.804]
[1740589820263,0.20619116,87346.0,87345.0,1.804]
[1740589820448,0.20619116,87346.0,87345.0,1.8]
[1740589820760,0.20609116,87346.0,87345.0,1.502]
[1740589821664,0.20609116,87346.0,87345.0,1.505]
[1740589822082,0.20609116,87346.0,87345.0,1.502]
[1740589822635,0.20709116,87346.0,87345.0,1.502]
[1740589822834,0.03536116,87346.0,87345.0,1.502]
[1740589823017,0.03436116,87346.0,87345.0,1.802]
[1740589823313,0.03426116,87346.0,87345.0,1.8]
[1740589823518,0.03526116,87346.0,87345.0,1.8]
[1740589823718,0.00124701,87346.0,87345.0,1.8]
[1740589823967,0.3283,87384.0,87346.0,0.3]
[1740589824225,0.0003235,87364.0,87354.0,0.3]
[1740589824463,0.03539358,87364.0,87354.0,0.3]
[1740589824630,0.0002235,87364.0,87363.0,1.8]
[1740589825034,0.0001235,87364.0,87363.0,1.8]
[1740589825700,2.35e-05,87364.0,87363.0,1.8]
[1740589825933,0.03481711,87364.0,87363.0,1.8]
[1740589826345,0.03471711,87364.0,87363.0,1.8]
[1740589826464,0.228864,87389.0,87363.0,1.8]
[1740589826660,0.171692,87366.0,87363.0,1.8]
[1740589826866,0.171592,87366.0,87363.0,0.302]
[1740589827297,0.171695,87364.0,87363.0,0.304]
[1740589827499,0.171595,87364.0,87363.0,0.304]
[1740589827853,0.171595,87364.0,87363.0,1.802]
[1740589828157,0.171583,87371.0,87364.0,0.3793]
[1740589828359,0.171683,87370.0,87364.0,0.3793]
[1740589828538,0.171691,87366.0,87364.0,0.3793]
[1740589828739,0.171693,87365.0,87364.0,0.3793]
[1740589828972,0.171693,87365.0,87364.0,0.3]
[1740589829176,0.171593,87365.0,87364.0,0.3]
[1740589829734,0.228906,87372.0,87364.0,0.3]
[1740589829933,0.03516238,87373.0,87364.0,0.3]
[1740589830110,0.171693,87365.0,87364.0,0.303]
[1740589831190,0.171693,87365.0,87364.0,0.301]
[1740589831831,0.0097835,87365.0,87364.0,0.301]
[1740589832345,0.03516238,87373.0,87364.0,0.303]
[1740589832539,0.228906,87372.0,87364.0,0.303]
[1740589832973,0.03516238,87373.0,87364.0,0.303]
[1740589833198,0.26406738,87373.0,87364.0,0.301]
[1740589833328,0.171681,87371.0,87364.0,0.3]
[1740589833534,0.00942717,87370.0,87365.0,0.0493]
[1740589833731,0.0002663,87370.0,87365.0,0.0493]
[1740589833960,0.00967327,87369.0,87365.0,0.0493]
[1740589834165,0.00967327,87369.0,87368.0,1.8]
[1740589834363,0.002,87372.0,87369.0,0.3]
[1740589834563,0.20884038,87373.0,87369.0,0.3]
[1740589834564,0.03616238,87373.0,87369.0,0.3]
[1740589834945,0.228906,87372.0,87369.0,0.3]
[1740589835143,0.171683,87370.0,87369.0,0.3]
[1740589835352,0.18130523,87370.0,87369.0,0.299]
[1740589835903,0.17970152,87370.0,87369.0,0.299]
[1740589836090,0.18070152,87370.0,87369.0,0.299]
[1740589836687,0.18070152,87370.0,87369.0,0.302]
[1740589837541,0.18070152,87370.0,87369.0,0.003]
[1740589837962,0.18070152,87370.0,87369.0,0.008]
[1740589838179,0.00901852,87370.0,87369.0,0.008]
[1740589838377,0.00901852,87370.0,87369.0,0.003]
[1740589838554,0.001,87370.0,87369.0,0.007]
[1740589838758,0.00199933,87370.0,87369.0,1.807]
[1740589838958,0.00199933,87370.0,87369.0,1.883]
[1740589838959,0.001,87370.0,87369.0,1.883]
[1740589839928,0.00806699,87370.0,87369.0,1.883]
[1740589840132,0.00906193,87370.0,87369.0,1.883]
[1740589840337,0.001,87370.0,87369.0,1.883]
[1740589840550,0.001,87370.0,87369.0,1.807]
[1740589840551,0.172683,87370.0,87369.0,1.807]
[1740589840759,0.18074493,87370.0,87369.0,1.807]
[1740589840990,0.18074493,87370.0,87369.0,0.307]
[1740589840991,0.18116863,87370.0,87369.0,0.307]
[1740589841360,0.00948563,87370.0,87369.0,1.807]
[1740589841563,0.1731067,87370.0,87369.0,1.807]
[1740589841767,0.1811689,87370.0,87369.0,1.807]
[1740589843168,0.0094859,87370.0,87369.0,1.807]
[1740589843366,0.0094859,87370.0,87369.0,1.8873]
[1740589843541,0.0014237,87370.0,87369.0,2.106585]
[1740589844714,0.0014237,87370.0,87369.0,2.102585]
[1740589844920,0.0014237,87370.0,87369.0,2.106585]
[1740589845334,0.0014237,87370.0,87369.0,2.12112585]
[1740589845533,0.0004237,87370.0,87369.0,2.11412585]
[1740589845742,0.02286632,87370.0,87369.0,2.12312585]
[1740589845942,0.1359698,87388.0,87370.0,0.3]
[1740589846095,0.228819,87405.0,87371.0,0.01454085]
[1740589846275,0.26326953,87405.0,87375.0,0.299]
[1740589846475,0.228864,87388.0,87375.0,0.299]
[1740589846714,0.171652,87386.0,87379.0,1.5]
[1740589846970,0.00823846,87404.0,87379.0,1.5]
[1740589847158,0.171683,87370.0,87369.0,0.0526]
[1740589847353,0.171683,87370.0,87369.0,0.705]
[1740589847554,0.17983114,87370.0,87369.0,0.705]
[1740589847775,0.171685,87369.0,87364.0,0.0008474]
[1740589847943,0.04187318,87370.0,87364.0,0.0008474]
[1740589848124,0.171693,87365.0,87364.0,0.0008474]
[1740589848325,0.171688,87368.0,87364.0,0.7008474]
[1740589848526,0.00812208,87365.0,87364.0,1.0009708]
[1740589848722,0.03372504,87370.0,87365.0,0.3]
[1740589848922,0.457625,87408.0,87365.0,0.3]
[1740589848923,0.228851,87393.0,87365.0,0.3]
[1740589849129,0.228851,87393.0,87367.0,0.3]
[1740589849539,0.171677,87373.0,87367.0,0.3]
[1740589849738,0.228851,87393.0,87367.0,0.3]
[1740589849739,0.171676,87374.0,87367.0,0.299]
[1740589849968,0.17981864,87372.0,87367.0,0.299]
[1740589850146,0.228913,87370.0,87365.0,0.002]
[1740589850361,0.0070723,87369.0,87364.0,0.0079708]
[1740589850848,0.00817455,87368.0,87367.0,0.006]
[1740589852463,0.18086155,87368.0,87367.0,0.013]
[1740589852948,0.18086155,87368.0,87367.0,0.007]
[1740589853778,0.18186155,87368.0,87367.0,0.014]
[1740589853982,0.18186155,87368.0,87367.0,0.007]
[1740589854268,0.18186155,87368.0,87364.0,0.0009708]
[1740589854434,0.171693,87365.0,87364.0,0.0009708]
[1740589854836,0.17872559,87365.0,87364.0,0.0009708]
[1740589856260,0.17872559,87365.0,87364.0,0.0019708]
[1740589857551,0.17872559,87365.0,87364.0,0.0029708]
[1740589857757,0.17872559,87365.0,87364.0,0.0019708]
[1740589859222,0.17972559,87365.0,87364.0,0.0019708]
[1740589860034,0.17173,87346.0,87345.0,0.0008476]
[1740589860400,0.17874231,87346.0,87345.0,0.0008476]
[1740589861015,0.18714682,87346.0,87345.0,6e-07]
[1740589861219,0.18714682,87346.0,87345.0,0.0040006]
[1740589861425,0.18816808,87346.0,87345.0,0.0040006]
[1740589861652,0.18816808,87346.0,87345.0,6e-07]
[1740589862038,0.18916808,87346.0,87345.0,6e-07]
[1740589862567,0.171781,87320.0,87319.0,0.1]
[1740589862810,0.171781,87320.0,87319.0,0.10012321]
[1740589862968,0.17281572,87320.0,87319.0,0.40012321]
[1740589863396,0.17281572,87320.0,87319.0,0.10012321]
[1740589863976,0.18068251,87320.0,87319.0,0.10612321]
[1740589864725,0.18168251,87320.0,87319.0,1.61312321]
[1740589865103,0.18068251,87320.0,87319.0,1.60612321]
[1740589865302,0.00890151,87320.0,87319.0,1.90612321]
[1740589865501,0.00890151,87320.0,87319.0,2.16300621]
[1740589865502,0.00990151,87320.0,87319.0,2.16300621]
[1740589865712,0.36365761,87346.0,87320.0,0.3456]
[1740589865909,0.171756,87333.0,87320.0,0.574641]
[1740589866070,0.00659485,87345.0,87321.0,0.299]
[1740589866274,0.0213905,87332.0,87326.0,0.171768]
[1740589866511,0.0213905,87332.0,87331.0,1.5]
[1740589866699,0.0213905,87332.0,87320.0,0.0456]
[1740589866925,0.0213905,87332.0,87331.0,0.17076]
[1740589867115,0.00874436,87342.0,87331.0,0.0755]
[1740589867532,0.00507633,87341.0,87331.0,0.0755]
[1740589867710,0.01169209,87332.0,87331.0,0.0815]
[1740589868057,0.01269209,87332.0,87331.0,0.0815]
[1740589868260,0.01169209,87332.0,87331.0,2.04726]
[1740589868467,0.03307462,87332.0,87331.0,2.11090085]
[1740589868826,0.03307462,87332.0,87331.0,1.9246]
[1740589869047,0.03307462,87332.0,87331.0,2.09636]
[1740589869247,0.03207462,87332.0,87331.0,2.09636]
[1740589869471,0.03207462,87332.0,87331.0,2.22864838]
[1740589870017,0.01069209,87332.0,87331.0,2.10690085]
[1740589870224,0.01269209,87332.0,87331.0,2.10536]
[1740589870433,0.01269209,87332.0,87331.0,2.09936]
[1740589870669,0.002,87332.0,87331.0,2.11290085]
[1740589871122,0.001,87332.0,87331.0,2.44120085]
[1740589871428,0.0004238,87346.0,87333.0,0.3]
[1740589871631,0.0004238,87346.0,87334.0,0.01354085]
[1740589871860,0.0004238,87346.0,87333.0,0.3]
[1740589872063,0.228997,87338.0,87333.0,0.3]
[1740589872238,0.228991,87340.0,87333.0,0.3]
[1740589872446,0.00516956,87337.0,87334.0,0.171752]
[1740589872716,0.2293978,87346.0,87333.0,0.299]
[1740589872854,0.0004238,87346.0,87333.0,0.299]
[1740589873200,0.0004238,87346.0,87333.0,0.298]
[1740589873201,0.17174,87341.0,87333.0,0.298]
[1740589873539,0.0014238,87346.0,87333.0,0.303]
[1740589873953,0.171738,87343.0,87333.0,0.476754]
[1740589874149,0.0014238,87346.0,87333.0,0.31]
[1740589874355,0.0014238,87346.0,87345.0,0.171732]
[1740589874567,0.0014238,87346.0,87345.0,1.81297285]
[1740589875219,0.0014238,87346.0,87345.0,2.11297285]
[1740589875541,0.0004238,87346.0,87345.0,2.11297285]
[1740589875741,0.0004238,87346.0,87345.0,1.9267]
[1740589875982,0.1731538,87346.0,87345.0,1.9337]
[1740589876154,0.0014238,87346.0,87345.0,1.9267]
[1740589876452,0.0034238,87346.0,87345.0,1.9407]
[1740589876682,0.0024238,87346.0,87345.0,1.9337]
[1740589876896,0.1731538,87346.0,87345.0,1.9267]
[1740589877121,0.1751538,87346.0,87345.0,0.014]
[1740589877322,0.17834267,87346.0,87345.0,0.007]
[1740589877665,0.17834267,87346.0,87322.0,0.0781]
[1740589877666,0.00561267,87346.0,87324.0,0.3]
[1740589877911,0.229014,87331.0,87324.0,0.3]
[1740589878146,0.0014238,87346.0,87324.0,0.3]
[1740589878417,0.171762,87330.0,87325.0,1.5]
[1740589878653,0.0014238,87346.0,87326.0,0.3]
[1740589878654,0.171768,87327.0,87326.0,0.3]
[1740589879108,0.0014238,87346.0,87326.0,0.3]
[1740589879288,0.171766,87328.0,87326.0,0.3]
[1740589879507,0.0014238,87346.0,87324.0,0.302]
[1740589879508,0.17177,87327.0,87324.0,0.302]
[1740589879707,0.00510976,87327.0,87326.0,0.3]
[1740589879997,0.0004238,87346.0,87326.0,0.305]
[1740589880173,0.00516661,87345.0,87326.0,0.3]
[1740589880580,0.172767,87328.0,87326.0,0.306]
[1740589880747,0.001,87328.0,87326.0,0.306]
[1740589880943,0.00512401,87327.0,87326.0,0.306]
[1740589881144,0.001,87328.0,87326.0,0.306]
[1740589881353,0.001,87328.0,87327.0,0.3]
[1740589881550,0.172766,87328.0,87327.0,0.3]
[1740589881745,0.00612638,87328.0,87327.0,0.3]
[1740589882332,0.00512638,87328.0,87327.0,0.3]
[1740589882559,0.17689238,87328.0,87327.0,0.3]
[1740589882762,0.171766,87328.0,87327.0,0.299]
[1740589883074,0.171766,87328.0,87326.0,0.007]
[1740589883075,0.171768,87327.0,87326.0,0.007]
[1740589883271,0.171772,87325.0,87324.0,0.0008476]
[1740589883804,0.1768921,87325.0,87324.0,0.0008476]
[1740589884581,0.20737221,87325.0,87324.0,1.5008476]
[1740589884806,0.20837221,87325.0,87324.0,1.8078476]
[1740589885207,0.0061201,87325.0,87324.0,1.8078476]
[1740589885410,0.172772,87325.0,87324.0,1.8078476]
[1740589885569,0.001,87325.0,87324.0,1.8078476]
[1740589885979,0.002,87325.0,87324.0,1.8138476]
[1740589886176,0.01057888,87325.0,87324.0,1.8138476]
[1740589887666,0.01567393,87325.0,87324.0,1.8138476]
[1740589888156,0.01057888,87325.0,87324.0,1.8138476]
[1740589888353,0.18235088,87325.0,87324.0,1.8138476]
[1740589888583,0.01057888,87325.0,87324.0,1.8138476]
[1740589889526,0.01567393,87325.0,87324.0,1.8138476]
[1740589889731,0.01057888,87325.0,87324.0,1.8138476]
[1740589890127,0.01567393,87325.0,87324.0,1.8138476]
[1740589890334,0.01057888,87325.0,87324.0,1.9856216]
[1740589890529,0.01057888,87325.0,87324.0,1.8138476]
[1740589890755,0.01057888,87325.0,87324.0,0.3138476]
[1740589891160,0.01566495,87325.0,87324.0,0.3138476]
[1740589891384,0.01566495,87325.0,87324.0,2.5138476]
[1740589891759,0.18235088,87325.0,87324.0,2.5138476]
[1740589892247,0.18235088,87325.0,87324.0,1.0138476]
[1740589892431,0.18741598,87325.0,87324.0,1.0138476]
[1740589892661,0.18741598,87325.0,87324.0,2.5138476]
[1740589893359,0.01564398,87325.0,87324.0,2.5138476]
[1740589893566,0.01564398,87325.0,87324.0,2.78206245]
[1740589893777,0.01057888,87325.0,87324.0,2.82866245]
[1740589893984,0.0004238,87346.0,87342.0,0.3]
[1740589894215,0.0004238,87346.0,87345.0,0.56187285]
[1740589894610,0.0004238,87346.0,87345.0,2.06187285]
[1740589894820,0.0004238,87346.0,87345.0,1.8756]
[1740589895722,0.0004238,87346.0,87345.0,1.8806]
[1740589896147,0.0004238,87346.0,87345.0,2.06187285]
[1740589896348,0.0004238,87346.0,87345.0,1.89614085]
[1740589896736,0.0004238,87346.0,87345.0,1.89714085]
[1740589896932,0.0004238,87346.0,87345.0,1.8826]
[1740589897154,0.0004238,87346.0,87345.0,2.047332]
[1740589897412,0.0004238,87346.0,87345.0,2.06187285]
[1740589897615,0.0004238,87346.0,87345.0,2.06887285]
[1740589897792,0.0004238,87346.0,87345.0,2.39617285]
[1740589898121,0.0004238,87346.0,87345.0,2.51692038]
[1740589898332,0.0004238,87346.0,87345.0,2.93144085]
[1740589898520,0.0004238,87346.0,87345.0,3.10317285]
[1740589898943,0.0004238,87346.0,87345.0,3.09617285]
[1740589899228,0.0004238,87346.0,87345.0,3.10317285]
[1740589899995,0.0004238,87346.0,87345.0,2.93144085]
[1740589900328,0.0004238,87346.0,87345.0,3.10317285]
[1740589900776,0.0004238,87346.0,87345.0,2.9169]
[1740589901421,0.0004238,87346.0,87345.0,3.088632]
[1740589902428,0.0004238,87346.0,87345.0,2.9169]
[1740589902787,0.0004238,87346.0,87345.0,3.088632]
[1740589902973,0.0004238,87346.0,87345.0,2.9169]
[1740589903385,0.0004238,87346.0,87345.0,3.088632]
[1740589904121,0.0004238,87346.0,87345.0,3.21692038]
[1740589904516,0.10285692,87386.0,87347.0,0.01454085]
[1740589904750,0.22893,87363.0,87354.0,0.31454085]
[1740589904972,0.10285692,87386.0,87354.0,0.31454085]
[1740589905159,0.171713,87355.0,87354.0,0.3]
[1740589905363,0.03110285,87375.0,87354.0,1.8]
[1740589905573,0.228932,87362.0,87354.0,1.8]
[1740589905732,0.171703,87361.0,87354.0,1.8]
[1740589905930,0.228901,87374.0,87355.0,0.3]
[1740589906141,0.03410285,87375.0,87355.0,0.3]
[1740589906345,0.00012333,87374.0,87355.0,0.3]
[1740589906546,0.171695,87365.0,87355.0,0.3]
[1740589906771,0.171695,87364.0,87355.0,0.3]
[1740589906973,0.00012333,87374.0,87355.0,0.528949]
[1740589907205,0.00012333,87374.0,87358.0,0.228942]
[1740589907396,0.171689,87367.0,87359.0,0.3]
[1740589907581,0.171689,87367.0,87366.0,0.3]
[1740589907796,0.171689,87367.0,87357.0,0.3]
[1740589907947,0.228915,87369.0,87357.0,0.3]
[1740589908147,0.171687,87368.0,87367.0,0.3]
[1740589909192,0.00012333,87374.0,87367.0,0.301]
[1740589909193,0.22902633,87374.0,87367.0,0.301]
[1740589909393,0.00012333,87374.0,87367.0,0.301]
[1740589909592,0.171679,87373.0,87367.0,0.301]
[1740589909795,0.171685,87369.0,87367.0,0.303]
[1740589910025,0.171685,87369.0,87367.0,0.302]
[1740589910218,0.00012333,87374.0,87367.0,0.3]
[1740589910419,0.171687,87368.0,87367.0,0.3]
[1740589910820,0.00112333,87374.0,87367.0,0.3]
[1740589911198,0.00112333,87374.0,87366.0,0.0776]
[1740589911420,0.00112333,87374.0,87367.0,0.0465]
[1740589911633,0.00112333,87374.0,87367.0,0.3465]
[1740589911826,0.00112333,87374.0,87369.0,0.3]
[1740589911827,0.171683,87371.0,87369.0,0.3]